[Event "Abu Dhabi Challenge Match 2019"]
[Site "Abu Dhabi"]
[Date "2019.08.08"]
[Round "7.1"]
[White "Morozevich, Alexander"]
[Black "Leko, Peter"]
[Result "1/2-1/2"]
[ECO "A06"]
[WhiteElo "2659"]
[BlackElo "2674"]
[Annotator "ChessBase"]
[PlyCount "86"]
[EventDate "2019.08.06"]
[EventType "match"]
[EventCountry "UAE"]
[SourceTitle "playchess.com"]
[Source "ChessBase"]
[SourceQuality "1"]
[TimeControl "300+3"]

1. Nf3 {[%emt 0:02:02]} d5 {[%emt 0:02:02]} 2. g3 {[%emt 0:00:03]} c6 {[%emt 0:00:04]} 3. Bg2 {[%emt 0:00:02]} Bg4 {[%emt 0:00:03]} 4. h3 {[%emt 0:00:03]} Bh5 {[%emt 0:00:03]} 5. d3 {[%emt 0:00:02]} Nd7 {[%emt 0:00:03]} 6. Nbd2 {[%emt 0:00:15]} Ngf6 {[%emt 0:00:12]} 7. g4 {[%emt 0:00:03]} Bg6 {[%emt 0:00:03]} 8. Nh4 {[%emt 0:00:02]} e5 {[%emt 0:00:10]} 9. e3 {[%emt 0:00:03]} Nc5 {[%emt 0:00:15]} 10. O-O {[%emt 0:00:11]} Nfd7 {[%emt 0:00:04]} 11. Nxg6 {[%emt 0:00:26]} hxg6 {[%emt 0:00:02]} 12. Qe2 {[%emt 0:00:07]} Ne6 {[%emt 0:00:17]} 13. c4 {[%emt 0:00:08]} dxc4 {[%emt 0:00:25]} 14. Nxc4 {[%emt 0:00:03]} Ng5 {[%emt 0:00:03]} 15. Rd1 {[%emt 0:00:05]} Nxh3+ {[%emt 0:00:06]} 16. Kf1 {[%emt 0:00:01]} Be7 {[%emt 0:00:26]} 17. d4 {[%emt 0:00:08]} exd4 {[%emt 0:00:48]} 18. exd4 {[%emt 0:00:03]} Kf8 {[%emt 0:00:02]} 19. d5 {[%emt 0:00:42]} cxd5 {[%emt 0:00:05]} 20. Bxd5 {[%emt 0:00:28]} Qc7 {[%emt 0:00:22]} 21. Bxf7 {[%emt 0:00:18]} Ng5 {[%emt 0:00:04]} 22. Bd5 {[%emt 0:00:05]} Bf6 {[%emt 0:00:15]} 23. Bxg5 {[%emt 0:00:11]} Bxg5 {[%emt 0:00:02]} 24. Qe6 {[%emt 0:00:07]} Nf6 {[%emt 0:00:06]} 25. Ne5 {[%emt 0:00:21]} Rh6 {[%emt 0:00:04]} 26. Nf3 {[%emt 0:00:02]} Bf4 {[%emt 0:00:07]} 27. g5 {[%emt 0:00:13]} Re8 {[%emt 0:00:02]} 28. Qxe8+ {[%emt 0:00:05]} Nxe8 {[%emt 0:00:03]} 29. gxh6 {[%emt 0:00:02]} gxh6 {[%emt 0:00:02]} 30. Nd4 {[%emt 0:00:03]} Ng7 {[%emt 0:00:02]} 31. Rd3 {[%emt 0:00:05]} g5 {[%emt 0:00:03]} 32. Re1 {[%emt 0:00:02]} Qd7 {[%emt 0:00:04]} 33. Bc4 {[%emt 0:00:04]} Qg4 {[%emt 0:00:05]} 34. Nf3 {[%emt 0:00:04]} Qh3+ {[%emt 0:00:02]} 35. Ke2 {[%emt 0:00:02]} Qc8 {[%emt 0:00:04]} 36. Bb3 {[%emt 0:00:02]} Ne6 {[%emt 0:00:04]} 37. Kf1 {[%emt 0:00:02]} Nc5 {[%emt 0:00:03]} 38. Rc3 {[%emt 0:00:03]} Qh3+ {[%emt 0:00:02]} 39. Ke2 {[%emt 0:00:03]} Nxb3 {[%emt 0:00:03]} 40. axb3 {[%emt 0:00:02]} Qe6+ {[%emt 0:00:02]} 41. Kf1 {[%emt 0:00:01]} Qh3+ {[%emt 0:00:02]} 42. Ke2 {[%emt 0:00:02]} Qe6+ {[%emt 0:00:02]} 43. Kf1 {[%emt 0:00:01]} Qh3+ {[%emt 0:00:01] Ra1} 1/2-1/2

[Event "Abu Dhabi Challenge Match 2019"]
[Site "Abu Dhabi"]
[Date "2019.08.08"]
[Round "11.1"]
[White "Morozevich, Alexander"]
[Black "Leko, Peter"]
[Result "1/2-1/2"]
[ECO "D01"]
[WhiteElo "2659"]
[BlackElo "2674"]
[Annotator "ChessBase"]
[PlyCount "83"]
[EventDate "2019.08.06"]
[EventType "match"]
[EventCountry "UAE"]
[SourceTitle "playchess.com"]
[Source "ChessBase"]
[SourceQuality "1"]
[TimeControl "180+2"]

1. d4 {[%emt 0:00:00]} Nf6 {[%emt 0:00:00]} 2. Nc3 {[%emt 0:00:00]} d5 {[%emt 0:00:00]} 3. Bg5 {[%emt 0:00:01]} Nbd7 {[%emt 0:00:01]} 4. Nf3 {[%emt 0:00:01]} h6 {[%emt 0:00:04]} 5. Bf4 {[%emt 0:00:01]} a6 {[%emt 0:00:04]} 6. Qd3 {[%emt 0:00:01]} b5 {[%emt 0:00:17]} 7. Ne5 {[%emt 0:00:26]} c5 {[%emt 0:00:31]} 8. e4 {[%emt 0:00:20]} cxd4 {[%emt 0:01:15]} 9. Qxd4 {[%emt 0:00:15]} Bb7 {[%emt 0:00:01]} 10. O-O-O {[%emt 0:00:12]} e6 {[%emt 0:00:08]} 11. Nxd7 {[%emt 0:00:22]} Qxd7 {[%emt 0:00:01]} 12. Be5 {[%emt 0:00:06]} Rc8 {[%emt 0:00:14]} 13. Bxf6 {[%emt 0:00:08]} gxf6 {[%emt 0:00:06]} 14. exd5 {[%emt 0:00:09]} e5 {[%emt 0:00:02]} 15. Qd3 {[%emt 0:00:15]} f5 {[%emt 0:00:04]} 16. g3 {[%emt 0:00:37]} b4 {[%emt 0:00:04]} 17. Ne2 {[%emt 0:00:04]} Bg7 {[%emt 0:00:05]} 18. Bh3 {[%emt 0:00:08]} e4 {[%emt 0:00:01]} 19. Qd2 {[%emt 0:00:01]} Rc5 {[%emt 0:00:06]} 20. Qf4 {[%emt 0:00:12]} Qa4 {[%emt 0:00:07]} 21. Rd2 {[%emt 0:00:11]} Qxa2 22. Kd1 O-O {[%emt 0:00:09]} 23. Nc1 {[%emt 0:00:04]} Qxb2 {[%emt 0:00:03]} 24. Bxf5 {[%emt 0:00:04]} Rxd5 {[%emt 0:00:04]} 25. Rxd5 {[%emt 0:00:06]} Bxd5 {[%emt 0:00:01]} 26. Bxe4 {[%emt 0:00:03]} Bxe4 {[%emt 0:00:10]} 27. Qxe4 {[%emt 0:00:01]} Rc8 {[%emt 0:00:05]} 28. Re1 {[%emt 0:00:01]} a5 {[%emt 0:00:02]} 29. Qf5 {[%emt 0:00:06]} Qc3 {[%emt 0:00:03]} 30. Re3 {[%emt 0:00:01]} Rd8+ {[%emt 0:00:02]} 31. Nd3 {[%emt 0:00:01]} b3 {[%emt 0:00:02]} 32. cxb3 {[%emt 0:00:01]} Qxb3+ 33. Ke2 {[%emt 0:00:00]} a4 {[%emt 0:00:02]} 34. Nc5 {[%emt 0:00:03]} Qc4+ {[%emt 0:00:02]} 35. Kf3 {[%emt 0:00:02]} Ra8 {[%emt 0:00:08]} 36. Re4 {[%emt 0:00:04]} Qc3+ {[%emt 0:00:03]} 37. Kg2 {[%emt 0:00:01]} a3 {[%emt 0:00:01]} 38. Rf4 {[%emt 0:00:02]} Ra7 {[%emt 0:00:04]} 39. Qc8+ {[%emt 0:00:01]} Kh7 {[%emt 0:00:01]} 40. Qf5+ Kg8 {[%emt 0:00:00]} 41. Qc8+ {[%emt 0:00:07]} Kh7 {[%emt 0:00:01]} 42. Qf5+ 1/2-1/2

[Event "Abu Dhabi Challenge Match 2019"]
[Site "Abu Dhabi"]
[Date "2019.08.08"]
[Round "12.1"]
[White "Leko, Peter"]
[Black "Morozevich, Alexander"]
[Result "1/2-1/2"]
[ECO "B30"]
[WhiteElo "2674"]
[BlackElo "2659"]
[Annotator "ChessBase"]
[PlyCount "117"]
[EventDate "2019.08.06"]
[EventType "match"]
[EventCountry "UAE"]
[SourceTitle "playchess.com"]
[Source "ChessBase"]
[SourceQuality "1"]
[TimeControl "180+2"]

1. e4 {[%emt 0:00:00]} c5 {[%emt 0:00:00]} 2. Nf3 {[%emt 0:00:01]} Nc6 {[%emt 0:00:00]} 3. Bb5 {[%emt 0:00:02]} Nf6 {[%emt 0:00:00]} 4. Bxc6 {[%emt 0:00:02]} dxc6 {[%emt 0:00:01]} 5. d3 {[%emt 0:00:02]} Bg4 {[%emt 0:00:02]} 6. h3 {[%emt 0:00:08]} Bh5 {[%emt 0:00:01]} 7. Nbd2 {[%emt 0:00:12]} Nd7 {[%emt 0:00:03]} 8. Nf1 {[%emt 0:00:14]} e5 {[%emt 0:00:07]} 9. g4 {[%emt 0:00:04]} Bg6 {[%emt 0:00:01]} 10. Ng3 {[%emt 0:00:04]} f6 {[%emt 0:00:04]} 11. b3 {[%emt 0:00:08]} Qc7 {[%emt 0:00:09]} 12. Be3 {[%emt 0:00:18]} O-O-O {[%emt 0:00:02]} 13. Nd2 {[%emt 0:00:21]} Bf7 {[%emt 0:00:19]} 14. a3 {[%emt 0:00:11]} Kb8 {[%emt 0:00:20]} 15. Qe2 {[%emt 0:00:03]} g6 {[%emt 0:00:05]} 16. O-O {[%emt 0:00:15]} h5 {[%emt 0:00:14]} 17. gxh5 {[%emt 0:00:04]} g5 {[%emt 0:00:01]} 18. Kg2 {[%emt 0:00:10]} Be7 {[%emt 0:00:04]} 19. b4 {[%emt 0:00:03]} Nf8 {[%emt 0:00:02]} 20. bxc5 {[%emt 0:00:20]} Ne6 {[%emt 0:00:01]} 21. h6 {[%emt 0:00:13]} Rxh6 {[%emt 0:00:20]} 22. Nf5 {[%emt 0:00:01]} Rh7 {[%emt 0:00:01]} 23. Rh1 {[%emt 0:00:06]} Bxc5 {[%emt 0:00:07]} 24. Nf1 {[%emt 0:00:09]} Rdh8 {[%emt 0:00:12]} 25. Qd2 {[%emt 0:00:10]} Nf4+ {[%emt 0:00:07]} 26. Bxf4 {[%emt 0:00:03]} gxf4 {[%emt 0:00:03]} 27. Nh2 {[%emt 0:00:13]} Rxh3 {[%emt 0:00:05]} 28. Nf3 {[%emt 0:00:00]} Rxh1 {[%emt 0:00:30]} 29. Rxh1 {[%emt 0:00:01]} Rxh1 {[%emt 0:00:02]} 30. Kxh1 {[%emt 0:00:01]} Bxa3 {[%emt 0:00:11]} 31. d4 {[%emt 0:00:02]} Bh5 {[%emt 0:00:12]} 32. N3h4 {[%emt 0:00:05]} a5 {[%emt 0:00:03]} 33. c3 {[%emt 0:00:04]} exd4 {[%emt 0:00:02]} 34. Nxd4 {[%emt 0:00:04]} Qe5 {[%emt 0:00:06]} 35. f3 {[%emt 0:00:05]} Bc5 {[%emt 0:00:06]} 36. Nb3 {[%emt 0:00:04]} Bb6 {[%emt 0:00:03]} 37. Nd4 {[%emt 0:00:03]} a4 {[%emt 0:00:01]} 38. Nhf5 {[%emt 0:00:02]} Bf7 {[%emt 0:00:06]} 39. Qb2 {[%emt 0:00:05]} Ka7 {[%emt 0:00:04]} 40. Qa3 {[%emt 0:00:01]} Qa5 {[%emt 0:00:02]} 41. Qe7 {[%emt 0:00:02]} Bxd4 {[%emt 0:00:06]} 42. Nxd4 {[%emt 0:00:02]} Qh5+ {[%emt 0:00:03]} 43. Kg2 {[%emt 0:00:02]} Ka6 {[%emt 0:00:04]} 44. Qd8 {[%emt 0:00:04]} Qg5+ {[%emt 0:00:05]} 45. Kh1 {[%emt 0:00:02]} Qh4+ {[%emt 0:00:03]} 46. Kg2 {[%emt 0:00:02]} Qg3+ {[%emt 0:00:01]} 47. Kh1 {[%emt 0:00:01]} Qe1+ {[%emt 0:00:03]} 48. Kg2 {[%emt 0:00:01]} Qxc3 {[%emt 0:00:08]} 49. Qa8+ {[%emt 0:00:01]} Kb6 {[%emt 0:00:00]} 50. Qxa4 {[%emt 0:00:05]} Bc4 {[%emt 0:00:03]} 51. Nf5 Bb5 {[%emt 0:00:04]} 52. Qa8 {[%emt 0:00:05]} c5 {[%emt 0:00:01]} 53. Qd8+ {[%emt 0:00:01]} Ka7 {[%emt 0:00:01]} 54. Nd6 {[%emt 0:00:01]} Qb2+ {[%emt 0:00:02]} 55. Kh3 {[%emt 0:00:02]} Bc6 {[%emt 0:00:00]} 56. Qa5+ Kb8 57. Qd8+ {[%emt 0:00:02]} Ka7 {[%emt 0:00:01]} 58. Qa5+ Kb8 {[%emt 0:00:00]} 59. Qd8+ {[%emt 0:00:01]} 1/2-1/2

[Event "Abu Dhabi Challenge Match 2019"]
[Site "Abu Dhabi"]
[Date "2019.08.08"]
[Round "14.1"]
[White "Leko, Peter"]
[Black "Morozevich, Alexander"]
[Result "1/2-1/2"]
[ECO "D02"]
[WhiteElo "2674"]
[BlackElo "2659"]
[Annotator "ChessBase"]
[PlyCount "141"]
[EventDate "2019.08.06"]
[EventType "match"]
[EventCountry "UAE"]
[SourceTitle "playchess.com"]
[Source "ChessBase"]
[SourceQuality "1"]
[TimeControl "180+2"]

1. Nf3 {[%emt 0:00:00]} d5 {[%emt 0:00:01]} 2. e3 {[%emt 0:00:01]} Nc6 {[%emt 0:00:02]} 3. d4 {[%emt 0:00:03]} Bg4 {[%emt 0:00:01]} 4. Be2 {[%emt 0:00:07]} e6 {[%emt 0:00:03]} 5. O-O {[%emt 0:00:07]} Bd6 {[%emt 0:00:08]} 6. c4 {[%emt 0:00:06]} Nf6 {[%emt 0:00:02]} 7. Nbd2 {[%emt 0:00:08]} O-O {[%emt 0:00:01]} 8. b3 {[%emt 0:00:02]} e5 {[%emt 0:00:14]} 9. cxd5 {[%emt 0:00:28]} Nxd5 {[%emt 0:00:04]} 10. Bb2 {[%emt 0:00:01]} exd4 {[%emt 0:00:19]} 11. Nxd4 {[%emt 0:00:01]} Bxe2 {[%emt 0:00:04]} 12. Qxe2 {[%emt 0:00:03]} Nxd4 {[%emt 0:00:10]} 13. Bxd4 {[%emt 0:00:01]} Qh4 {[%emt 0:00:13]} 14. Nf3 {[%emt 0:00:05]} Qh5 {[%emt 0:00:02]} 15. Qb2 {[%emt 0:00:03]} Rfe8 {[%emt 0:00:15]} 16. Rfd1 {[%emt 0:00:36]} Re6 {[%emt 0:00:05]} 17. h3 {[%emt 0:00:10]} Rae8 {[%emt 0:00:26]} 18. Rac1 {[%emt 0:00:02]} c6 {[%emt 0:00:05]} 19. Bxa7 {[%emt 0:00:17]} Rg6 {[%emt 0:00:32]} 20. Kh1 {[%emt 0:00:10]} Ree6 {[%emt 0:00:07]} 21. Rc4 {[%emt 0:00:03]} Rxg2 {[%emt 0:00:15]} 22. Kxg2 {[%emt 0:00:03]} Rg6+ {[%emt 0:00:00]} 23. Rg4 {[%emt 0:00:06]} Rxg4+ {[%emt 0:00:01]} 24. hxg4 {[%emt 0:00:01]} Qxg4+ {[%emt 0:00:00]} 25. Kf1 {[%emt 0:00:04]} Qxf3 {[%emt 0:00:01]} 26. Qd4 {[%emt 0:00:38]} h5 {[%emt 0:00:07]} 27. Rd3 {[%emt 0:00:06]} Be7 {[%emt 0:00:10]} 28. Bb8 {[%emt 0:00:03]} h4 {[%emt 0:00:03]} 29. e4 {[%emt 0:00:05]} Qh1+ {[%emt 0:00:02]} 30. Ke2 {[%emt 0:00:01]} Nf6 {[%emt 0:00:04]} 31. e5 {[%emt 0:00:06]} Nd5 {[%emt 0:00:01]} 32. Bd6 {[%emt 0:00:03]} Bg5 {[%emt 0:00:01]} 33. e6 {[%emt 0:00:02]} fxe6 {[%emt 0:00:11]} 34. Qg4 {[%emt 0:00:00]} Bf6 {[%emt 0:00:12]} 35. Qxe6+ {[%emt 0:00:02]} Kh7 {[%emt 0:00:01]} 36. Qf5+ {[%emt 0:00:02]} g6 {[%emt 0:00:02]} 37. Qd7+ {[%emt 0:00:03]} Bg7 {[%emt 0:00:00]} 38. Bf8 {[%emt 0:00:12]} Qe4+ {[%emt 0:00:01]} 39. Re3 {[%emt 0:00:01]} Nf4+ {[%emt 0:00:08]} 40. Kd2 {[%emt 0:00:02]} Qd5+ {[%emt 0:00:00]} 41. Qxd5 {[%emt 0:00:01]} Nxd5 {[%emt 0:00:01]} 42. Re8 {[%emt 0:00:03]} Bd4 {[%emt 0:00:02]} 43. Ke2 {[%emt 0:00:02]} g5 {[%emt 0:00:03]} 44. Kf3 {[%emt 0:00:02]} Kg6 {[%emt 0:00:01]} 45. Re4 {[%emt 0:00:02]} Bb6 {[%emt 0:00:03]} 46. Bd6 {[%emt 0:00:02]} Nf6 {[%emt 0:00:02]} 47. Rb4 {[%emt 0:00:01]} g4+ {[%emt 0:00:01]} 48. Kg2 {[%emt 0:00:02]} h3+ {[%emt 0:00:03]} 49. Kf1 {[%emt 0:00:01]} Ba7 {[%emt 0:00:05]} 50. Rxb7 {[%emt 0:00:02]} Bd4 {[%emt 0:00:00]} 51. Bg3 {[%emt 0:00:03]} Ne4 {[%emt 0:00:01]} 52. Rd7 {[%emt 0:00:02]} c5 {[%emt 0:00:00]} 53. a4 {[%emt 0:00:01]} Nd2+ {[%emt 0:00:04]} 54. Ke2 {[%emt 0:00:01]} Nxb3 {[%emt 0:00:02]} 55. Kd3 {[%emt 0:00:02]} Kf5 {[%emt 0:00:00]} 56. Rb7 {[%emt 0:00:04]} Na5 {[%emt 0:00:02]} 57. Rb5 {[%emt 0:00:01]} Nc6 {[%emt 0:00:01]} 58. a5 {[%emt 0:00:01]} Ke6 {[%emt 0:00:01]} 59. a6 {[%emt 0:00:02]} Kd5 {[%emt 0:00:02]} 60. Ke2 {[%emt 0:00:05]} Na7 {[%emt 0:00:06]} 61. Rb7 {[%emt 0:00:01]} c4 {[%emt 0:00:01]} 62. Rd7+ {[%emt 0:00:01]} Ke4 {[%emt 0:00:01]} 63. Bb8 {[%emt 0:00:02]} Nc6 {[%emt 0:00:00]} 64. a7 {[%emt 0:00:01]} Bxa7 {[%emt 0:00:02]} 65. Bxa7 {[%emt 0:00:01]} h2 {[%emt 0:00:02]} 66. Rh7 {[%emt 0:00:02]} Nxa7 {[%emt 0:00:00]} 67. Rxh2 {[%emt 0:00:01]} Nc6 {[%emt 0:00:01]} 68. Rh8 {[%emt 0:00:05]} Nd4+ {[%emt 0:00:05]} 69. Kd2 {[%emt 0:00:01]} Nf5 {[%emt 0:00:06]} 70. Ke2 {[%emt 0:00:03]} Nd4+ {[%emt 0:00:01]} 71. Kd2 {[%emt 0:00:01]} 1/2-1/2

[Event "Abu Dhabi Challenge Match 2019"]
[Site "Abu Dhabi"]
[Date "2019.08.08"]
[Round "15.1"]
[White "Morozevich, Alexander"]
[Black "Leko, Peter"]
[Result "1/2-1/2"]
[ECO "D01"]
[WhiteElo "2659"]
[BlackElo "2674"]
[Annotator "ChessBase"]
[PlyCount "140"]
[EventDate "2019.08.06"]
[EventType "match"]
[EventCountry "UAE"]
[SourceTitle "playchess.com"]
[Source "ChessBase"]
[SourceQuality "1"]
[TimeControl "180+2"]

1. d4 {[%emt 0:00:00]} Nf6 {[%emt 0:00:00]} 2. Nc3 {[%emt 0:00:00]} d5 {[%emt 0:00:00]} 3. Bg5 {[%emt 0:00:01]} h6 {[%emt 0:00:00]} 4. Bh4 {[%emt 0:00:01]} Nbd7 {[%emt 0:00:03]} 5. Nf3 {[%emt 0:00:01]} e6 {[%emt 0:00:07]} 6. e4 {[%emt 0:00:01]} g5 {[%emt 0:00:34]} 7. Bg3 {[%emt 0:00:01]} Nxe4 {[%emt 0:00:03]} 8. Nxe4 {[%emt 0:00:02]} dxe4 {[%emt 0:00:01]} 9. Nd2 {[%emt 0:00:01]} Bg7 {[%emt 0:00:16]} 10. h4 {[%emt 0:00:01]} Bxd4 {[%emt 0:00:21]} 11. Nxe4 {[%emt 0:00:01]} Bxb2 {[%emt 0:00:31]} 12. Rb1 {[%emt 0:00:01]} Bg7 {[%emt 0:00:01]} 13. hxg5 {[%emt 0:00:05]} hxg5 {[%emt 0:00:15]} 14. Rxh8+ {[%emt 0:00:06]} Bxh8 {[%emt 0:00:00]} 15. Qh5 {[%emt 0:00:05]} Bg7 {[%emt 0:00:04]} 16. Nxg5 {[%emt 0:01:28]} Qe7 {[%emt 0:00:17]} 17. Rb3 {[%emt 0:00:18]} Nf6 {[%emt 0:00:04]} 18. Qh4 {[%emt 0:00:17]} Qc5 {[%emt 0:00:08]} 19. Bd3 {[%emt 0:00:07]} a5 {[%emt 0:00:22]} 20. Rb5 {[%emt 0:00:07]} Qc3+ {[%emt 0:00:04]} 21. Ke2 {[%emt 0:00:01]} Nd5 {[%emt 0:00:08]} 22. Qh5 {[%emt 0:00:15]} Qf6 {[%emt 0:00:05]} 23. Nxf7 {[%emt 0:00:03]} Kf8 {[%emt 0:00:09]} 24. Ng5 {[%emt 0:00:08]} Ke7 {[%emt 0:00:01]} 25. Ne4 {[%emt 0:00:08]} Qd4 {[%emt 0:00:05]} 26. Qg5+ {[%emt 0:00:07]} Kf7 {[%emt 0:00:01]} 27. c4 {[%emt 0:00:10]} Nb4 {[%emt 0:00:04]} 28. Qh5+ {[%emt 0:00:10]} Kf8 {[%emt 0:00:04]} 29. Qf3+ {[%emt 0:00:04]} Kg8 {[%emt 0:00:03]} 30. Rg5 {[%emt 0:00:01]} Qxd3+ {[%emt 0:00:02]} 31. Qxd3 {[%emt 0:00:01]} Nxd3 {[%emt 0:00:01]} 32. Kxd3 {[%emt 0:00:01]} Kh7 {[%emt 0:00:04]} 33. Bxc7 {[%emt 0:00:01]} Bd7 {[%emt 0:00:01]} 34. Be5 {[%emt 0:00:06]} Bxe5 {[%emt 0:00:05]} 35. Rxe5 {[%emt 0:00:02]} Kg6 {[%emt 0:00:02]} 36. Rg5+ {[%emt 0:00:01]} Kf7 {[%emt 0:00:01]} 37. Nd6+ {[%emt 0:00:05]} Kf6 {[%emt 0:00:00]} 38. f4 {[%emt 0:00:01]} Bc6 {[%emt 0:00:01]} 39. g4 {[%emt 0:00:02]} Rd8 {[%emt 0:00:01]} 40. c5 {[%emt 0:00:01]} b6 {[%emt 0:00:00]} 41. Kd4 {[%emt 0:00:02]} bxc5+ {[%emt 0:00:02]} 42. Kxc5 {[%emt 0:00:01]} Bd5 {[%emt 0:00:01]} 43. a4 {[%emt 0:00:05]} Rb8 {[%emt 0:00:01]} 44. Nb5 {[%emt 0:00:01]} Rc8+ {[%emt 0:00:01]} 45. Kb6 {[%emt 0:00:01]} Rc4 {[%emt 0:00:01]} 46. Kxa5 {[%emt 0:00:04]} Rxf4 {[%emt 0:00:00]} 47. Rg8 {[%emt 0:00:01]} Kf7 {[%emt 0:00:02]} 48. Rg5 {[%emt 0:00:04]} Kf6 {[%emt 0:00:01]} 49. Rg8 {[%emt 0:00:02]} Kf7 {[%emt 0:00:00]} 50. Rd8 {[%emt 0:00:01]} Bb3 {[%emt 0:00:08]} 51. Rd4 {[%emt 0:00:03]} e5 {[%emt 0:00:05]} 52. Rb4 {[%emt 0:00:01]} Bd1 {[%emt 0:00:02]} 53. g5 {[%emt 0:00:01]} Kg6 {[%emt 0:00:01]} 54. Nc3 {[%emt 0:00:05]} Bxa4 {[%emt 0:00:03]} 55. Rb6+ {[%emt 0:00:02]} Kxg5 {[%emt 0:00:02]} 56. Nxa4 {[%emt 0:00:02]} Rd4 {[%emt 0:00:02]} 57. Nc5 {[%emt 0:00:00]} Kf5 {[%emt 0:00:01]} 58. Kb5 {[%emt 0:00:00]} e4 {[%emt 0:00:01]} 59. Nb3 {[%emt 0:00:04]} Rd8 {[%emt 0:00:02]} 60. Kc4 {[%emt 0:00:01]} Kf4 {[%emt 0:00:02]} 61. Nd4 {[%emt 0:00:02]} Ke3 {[%emt 0:00:02]} 62. Nc2+ {[%emt 0:00:03]} Kd2 {[%emt 0:00:02]} 63. Nb4 {[%emt 0:00:00]} e3 {[%emt 0:00:01]} 64. Nd5 {[%emt 0:00:01]} e2 {[%emt 0:00:02]} 65. Rb2+ {[%emt 0:00:01]} Ke1 {[%emt 0:00:04]} 66. Nc3 {[%emt 0:00:05]} Re8 {[%emt 0:00:02]} 67. Kd3 {[%emt 0:00:03]} Rd8+ {[%emt 0:00:01]} 68. Ke3 {[%emt 0:00:01]} Re8+ {[%emt 0:00:02]} 69. Ne4 {[%emt 0:00:02]} Kf1 {[%emt 0:00:03]} 70. Rxe2 {[%emt 0:00:06]} Rxe4+ {[%emt 0:00:02]} 1/2-1/2

[Event "Abu Dhabi Challenge Match 2019"]
[Site "Abu Dhabi"]
[Date "2019.08.08"]
[Round "16.1"]
[White "Leko, Peter"]
[Black "Morozevich, Alexander"]
[Result "0-1"]
[ECO "B32"]
[WhiteElo "2674"]
[BlackElo "2659"]
[Annotator "RC"]
[PlyCount "82"]
[EventDate "2019.08.06"]
[EventType "match"]
[EventCountry "UAE"]
[SourceTitle "playchess.com"]
[Source "ChessBase"]
[SourceQuality "1"]
[TimeControl "180+2"]

1. e4 {[%emt 0:00:00]} c5 {[%emt 0:00:00]} 2. Nf3 {[%emt 0:00:00]} Nc6 {[%emt 0:00:00]} 3. d4 {[%emt 0:00:01]} cxd4 4. Nxd4 {[%emt 0:00:02]} Qb6 {[%emt 0:00:01]} 5. Nb3 {[%emt 0:00:01]} Nf6 {[%emt 0:00:01]} 6. Nc3 {[%emt 0:00:01]} e6 {[%emt 0:00:00]} 7. Bd3 {[%emt 0:00:13]} a6 {[%emt 0:00:02]} 8. Be3 {[%emt 0:00:12]} Qc7 {[%emt 0:00:01]} 9. f4 {[%emt 0:00:01]} d6 {[%emt 0:00:17]} 10. Qf3 {[%emt 0:00:01]} b5 {[%emt 0:00:01]} 11. O-O-O {[%emt 0:00:03]} Bb7 {[%emt 0:00:01]} 12. Kb1 {[%emt 0:00:14]} Be7 {[%emt 0:00:18]} 13. g4 {[%emt 0:00:03]} b4 {[%emt 0:00:14]} 14. Ne2 {[%emt 0:00:08]} Nd7 {[%emt 0:00:28]} 15. g5 {[%emt 0:00:03]} Nc5 {[%emt 0:00:01]} 16. h4 {[%emt 0:00:11]} Nxd3 {[%emt 0:00:23]} 17. cxd3 {[%emt 0:00:01]} d5 {[%emt 0:00:00]} 18. Rc1 {[%emt 0:00:36]} dxe4 {[%emt 0:00:09]} 19. dxe4 {[%emt 0:00:01]} O-O {[%emt 0:00:09]} 20. Nc5 {[%emt 0:00:01]} Rfd8 {[%emt 0:00:17]} 21. h5 {[%emt 0:00:04]} Bxc5 {[%emt 0:00:09]} 22. Bxc5 {[%emt 0:00:01]} Qd7 {[%emt 0:00:12]} 23. Rh3 {[%emt 0:00:11]} a5 {[%emt 0:00:05]} 24. g6 {[%emt 0:00:14]} fxg6 {[%emt 0:00:03]} 25. hxg6 {[%emt 0:00:02]} h6 {[%emt 0:00:00]} 26. Bb6 {[%emt 0:00:47]} Rdc8 {[%emt 0:00:04]} 27. Rhh1 {[%emt 0:00:08]} Ne7 {[%emt 0:00:04]} 28. Ng3 {[%emt 0:00:06]} a4 {[%emt 0:00:14]} 29. Rcd1 {[%emt 0:00:09]} Qc6 {[%emt 0:00:06]} 30. Bd4 {[%emt 0:00:05]} Qc2+ {[%emt 0:00:06]} 31. Ka1 {[%emt 0:00:00]} a3 {[%emt 0:00:01]} 32. Qb3 {[%emt 0:00:09]} axb2+ {[%emt 0:00:14]} 33. Qxb2 {[%emt 0:00:00]} Rxa2+ {[%emt 0:00:07]} 34. Qxa2 {[%emt 0:00:03]} Ra8 {[%emt 0:00:01]} 35. Qxa8+ {[%emt 0:00:07]} Bxa8 {[%emt 0:00:01]} 36. Bb2 {[%emt 0:00:05]} Qa4+ {[%emt 0:00:07]} 37. Kb1 {[%emt 0:00:01]} Nxg6 {[%emt 0:00:01]} 38. Rd2 {[%emt 0:00:03]} b3 {[%emt 0:00:02]} 39. Re1 {[%emt 0:00:01]} Nxf4 {[%emt 0:00:02]} 40. Be5 {[%emt 0:00:04]} Nd3 {[%emt 0:00:02]} 41. Rg1 {[%emt 0:00:03]} Nxe5 {[%emt 0:00:02]} 0-1